fUST/lending_fUST_20250403
["ID","MTS","AMOUNT","RATE_DAILY","PERIOD"]
[357062127,1743680317516,151.00681021,0.00025,30]
[357062128,1743680343587,-300.0,0.00015282,2]
[357062131,1743680404550,-300.0,0.00015282,2]
[357062132,1743680405768,-200.0,0.00015282,2]
[357062133,1743680437426,-200.0,0.00015436,10]
[357062134,1743680439052,-200.0,0.00015436,10]
[357062135,1743680447584,-176.3439,0.00015129,2]
[357062136,1743680459735,28999.99,0.00025,120]
[357062137,1743680463502,-283.06910415,0.00015129,2]
[357062138,1743680466930,-293.85457745,0.00015016,2]
[357062139,1743680476260,-228.36155915,0.00014919,2]
[357062140,1743680525771,-278.84325922,0.00014919,2]
[357062142,1743680631340,2000.0,0.00025,30]
[357062143,1743680631719,-353.32835595,0.0001477,2]
[357062146,1743680647233,-151.113671,0.0001477,2]
[357062147,1743680661627,-155.730029,0.00015436,10]
[357062148,1743680704954,-231.07733557,0.0001477,2]
[357062150,1743680763507,-200.0,0.0001477,2]
[357062151,1743680792190,-44.269971,0.00015436,10]
[357062152,1743680792216,-332.733794,0.00015436,10]
[357062153,1743680806416,-159.247357,0.0001477,2]
[357062154,1743680815112,-292.0614,0.00014622,2]
[357062156,1743680825482,-269.09674078,0.00014622,2]
[357062170,1743680885205,-180.81848361,0.00014622,2]
[357062171,1743680896964,929.13,0.00014,2]
[357062173,1743680943463,-170.01932539,0.00014622,2]
[357062176,1743681000931,-152.27921964,0.00014476,2]
[357062177,1743681005767,-220.60635781,0.00014476,2]
[357062205,1743681032553,-1563.78905048,0.00014476,2]
[357062206,1743681032563,-280.220474,0.00014879,2]
[357062207,1743681032573,-688.34777171,0.00014919,2]
[357062208,1743681032584,-818.84233862,0.00014919,2]
[357062209,1743681032594,-166.61975995,0.00015016,2]
[357062210,1743681032603,-447.9018032,0.00015109,2]
[357062211,1743681032612,-187.6237175,0.00015411,2]
[357062212,1743681032621,-300.0,0.00015435,2]
[357062213,1743681032631,-829.01238073,0.00015436,2]
[357062216,1743681032642,-4450.0,0.00015436,2]
[357062219,1743681032667,-15150.727435,0.00015436,2]
[357062220,1743681032676,-182.36224909,0.00016336,2]
[357062221,1743681032686,-16224.15037816,0.00016435,2]
[357062222,1743681032698,-1760.0,0.00016435,2]
[357062223,1743681037245,-151.0,0.00014331,2]
[357062238,1743681038463,-221.88557745,0.00014331,2]
[357062239,1743681038473,-174.02368168,0.00016434,2]
[357062240,1743681038483,-4094.91094971,0.00016435,2]
[357062247,1743681041066,-449.39999742,0.00016435,2]
[357062255,1743681043439,-9131.29735896,0.00016435,2]
[357062274,1743681052853,487.14,0.00010959,2]
[357062427,1743682061746,667.17,0.00010959,2]
[357062448,1743682236262,-151.0,0.0001423,2]
[357062449,1743682236275,-280.220475,0.00014373,2]
[357062450,1743682236286,-577.2247717,0.00014738,2]
[357062451,1743682236299,-300.0,0.00014885,2]
[357062452,1743682236311,-11673.6774128,0.00014886,2]
[357062453,1743682236322,-232.3681869,0.00015104,2]
[357062454,1743682236334,-5216.141779,0.00015277,2]
[357062455,1743682236345,-1437.4568559,0.00015406,2]
[357062456,1743682236368,-1376.3439,0.00015411,2]
[357062457,1743682236385,-237.7980465,0.0001553,2]
[357062458,1743682236400,-11726.65739202,0.00016,2]
[357062480,1743682238369,-1091.16643177,0.00016,2]
[357062494,1743682240885,-6512.47702896,0.00016,2]
[357062495,1743682240897,-13421.16263172,0.00016,2]
[357062496,1743682240912,-3189.78621333,0.00016,2]
[357062497,1743682240938,-2265.38011916,0.00016,2]
[357062520,1743682243555,-1225.60178711,0.000159,2]
[357062521,1743682243565,-284.9553574,0.00016,2]
[357062522,1743682243574,-215.16867728,0.0001607,2]
[357062523,1743682243584,-489.18337258,0.0001617,2]
[357062524,1743682243594,-310.76676446,0.0001617,2]
[357062525,1743682243604,-387.0,0.00016293,2]
[357062526,1743682243614,-215.16867727,0.00016337,2]
[357062527,1743682243624,-151.0,0.00016428,2]
[357062528,1743682243634,-344.08871108,0.00016435,2]
[357062529,1743682243643,-188.36932548,0.00016435,2]
[357062530,1743682243653,-19369.75217439,0.00016436,2]
[357062531,1743682243662,-636.85807052,0.00016436,2]
[357062532,1743682243673,-826.939449,0.00016436,2]
[357062533,1743682243683,-151.0,0.00016436,2]
[357062534,1743682243692,-151.0,0.00016436,2]
[357062535,1743682243701,-151.0,0.00016436,2]
[357062536,1743682243712,-261.956181,0.00016436,2]
[357062537,1743682243721,-261.956181,0.00016436,2]
[357062538,1743682243732,-442.06239235,0.00016436,2]
[357062539,1743682243744,-3207.80783465,0.00016436,2]
[357062541,1743682243754,-151.0,0.00016436,2]
[357062543,1743682243764,-285.142751,0.00016436,2]
[357062559,1743682340247,690.7,0.00010959,2]
[357062568,1743682828975,470.0,0.00025,30]
[357062639,1743683432827,-257.45974531,0.00016164,3]
[357062640,1743683432837,-74676.13799488,0.00016337,2]
[357062641,1743683432846,-151.0,0.00016428,2]
[357062642,1743683432856,-240.86209776,0.00016435,2]
[357062643,1743683432866,-151.0,0.00016436,2]
[357062644,1743683432886,-262.799384,0.00016436,2]
[357062645,1743683432897,-284.720358,0.00016436,2]
[357062646,1743683432907,-151.0,0.00016436,2]
[357062647,1743683432917,-151.0,0.00016436,2]
[357062648,1743683432927,-151.0,0.00016436,2]
[357062649,1743683432938,-151.0,0.00016436,2]
[357062650,1743683432947,-151.0,0.00016436,2]
[357062651,1743683432957,-151.0,0.00016436,2]
[357062652,1743683432967,-155.825583,0.00016436,2]
[357062653,1743683432979,-151.0,0.00016436,2]
[357062654,1743683432989,-151.0,0.00016436,2]
[357062655,1743683432999,-151.0,0.00016436,2]
[357062656,1743683433010,-151.0,0.00016436,2]
[357062657,1743683433020,-254.061118,0.00016436,2]
[357062658,1743683433030,-254.061118,0.00016436,2]
[357062659,1743683433039,-254.061118,0.00016436,2]
[357062660,1743683433050,-154.329104,0.00016436,2]
[357062661,1743683433060,-382.923553,0.00016436,2]
[357062662,1743683433071,-151.0,0.00016436,2]
[357062663,1743683433081,-382.923553,0.00016436,2]
[357062664,1743683433092,-382.923553,0.00016436,2]
[357062665,1743683433103,-151.0,0.00016436,2]
[357062666,1743683433113,-382.923553,0.00016436,2]
[357062667,1743683433123,-151.0,0.00016436,2]
[357062668,1743683433133,-151.0,0.00016436,2]
[357062669,1743683433143,-151.0,0.00016436,2]
[357062670,1743683433152,-290.658922,0.00016436,2]
[357062671,1743683433162,-382.923553,0.00016436,2]
[357062672,1743683433174,-382.923553,0.00016436,2]
[357062673,1743683433184,-382.923553,0.00016436,2]
[357062674,1743683433194,-382.923553,0.00016436,2]
[357062675,1743683433204,-151.0,0.00016436,2]
[357062676,1743683433214,-151.0,0.00016436,2]
[357062677,1743683433226,-151.0,0.00016436,2]
[357062678,1743683433237,-151.0,0.00016436,2]
[357062679,1743683433247,-151.0,0.00016436,2]
[357062680,1743683433257,-813.51359,0.00016436,2]
[357062681,1743683433267,-813.51359,0.00016436,2]
[357062682,1743683433278,-235.760562,0.00016436,2]
[357062683,1743683433288,-235.760562,0.00016436,2]
[357062684,1743683433298,-475.306456,0.00016436,2]
[357062685,1743683433308,-380.412574,0.00016436,2]
[357062686,1743683433319,-475.306456,0.00016436,2]
[357062687,1743683433329,-380.412574,0.00016436,2]
[357062688,1743683433339,-180.710466,0.00016436,2]
[357062689,1743683433349,-151.0,0.00016436,2]
[357062690,1743683433359,-319.924515,0.00016436,2]
[357062691,1743683433370,-319.924515,0.00016436,2]
[357062692,1743683433380,-151.0,0.00016436,2]
[357062693,1743683433390,-151.0,0.00016436,2]
[357062694,1743683433400,-151.0,0.00016436,2]
[357062695,1743683433410,-901.781969,0.00016436,2]
[357062696,1743683433420,-901.781969,0.00016436,2]
[357062697,1743683433430,-170.792412,0.00016436,2]
[357062698,1743683433439,-214.285468,0.00016436,2]
[357062699,1743683433449,-214.285468,0.00016436,2]
[357062700,1743683433459,-353.784312,0.00016436,2]
[357062701,1743683433470,-353.784312,0.00016436,2]
[357062702,1743683433483,-151.0,0.00016436,2]
[357062703,1743683433497,-151.617942,0.00016436,2]
[357062704,1743683433508,-151.0,0.00016436,2]
[357062705,1743683433518,-151.0,0.00016436,2]
[357062706,1743683433528,-269.127419,0.00016436,2]
[357062707,1743683433539,-269.127419,0.00016436,2]
[357062708,1743683433549,-151.0,0.00016436,2]
[357062709,1743683433559,-151.0,0.00016436,2]
[357062710,1743683433569,-265.895907,0.00016436,2]
[357062711,1743683433579,-179.430516,0.00016436,2]
[357062712,1743683433590,-179.430516,0.00016436,2]
[357062713,1743683433605,-290.417852,0.00016436,2]
[357062714,1743683433615,-290.417852,0.00016436,2]
[357062715,1743683433627,-151.0,0.00016436,2]
[357062716,1743683433637,-151.0,0.00016436,2]
[357062717,1743683433647,-151.0,0.00016436,2]
[357062718,1743683433657,-227.623463,0.00016436,2]
[357062719,1743683433669,-3453.119579,0.00016436,2]
[357062720,1743683433679,-151.0,0.00016436,2]
[357062721,1743683433689,-227.623463,0.00016436,2]
[357062722,1743683433700,-3453.119579,0.00016436,2]
[357062723,1743683433710,-151.0,0.00016436,2]
[357062724,1743683433721,-151.0,0.00016436,2]
[357062725,1743683433733,-151.0,0.00016436,2]
[357062726,1743683433743,-151.0,0.00016436,2]
[357062727,1743683433753,-151.0,0.00016436,2]
[357062728,1743683433763,-401.871862,0.00016436,2]
[357062729,1743683433774,-151.0,0.00016436,2]
[357062730,1743683433784,-401.871862,0.00016436,2]
[357062731,1743683433794,-151.0,0.00016436,2]
[357062732,1743683433804,-151.0,0.00016436,2]
[357062733,1743683433815,-151.0,0.00016436,2]
[357062734,1743683433825,-758.408868,0.00016436,2]
[357062735,1743683433835,-758.408868,0.00016436,2]
[357062736,1743683433846,-327.035492,0.00016436,2]
[357062737,1743683433857,-151.0,0.00016436,2]
[357062738,1743683433868,-327.035492,0.00016436,2]
[357062739,1743683433879,-278.464133,0.00016436,2]
[357062740,1743683433890,-278.464133,0.00016436,2]
[357062741,1743683433901,-602.616575,0.00016436,2]
[357062742,1743683433911,-602.616575,0.00016436,2]
[357062743,1743683433921,-277.877907,0.00016436,2]
[357062744,1743683433931,-277.877907,0.00016436,2]
[357062745,1743683433943,-785.592477,0.00016436,2]
[357062746,1743683433955,-785.592477,0.00016436,2]
[357062747,1743683433966,-151.0,0.00016436,2]
[357062748,1743683433979,-34874.56605246,0.00016437,2]
[357062749,1743683433989,-151.0,0.00016437,2]
[357062750,1743683434000,-151.0,0.00016437,2]
[357062751,1743683434011,-151.0,0.00016437,2]
[357062752,1743683434021,-151.0,0.00016437,2]
[357062753,1743683434031,-151.0,0.00016437,2]
[357062754,1743683434041,-151.0,0.00016437,2]
[357062755,1743683434051,-151.0,0.00016437,2]
[357062756,1743683434061,-151.0,0.00016437,2]
[357062757,1743683434071,-151.0,0.00016437,2]
[357062758,1743683434080,-151.0,0.00016437,2]
[357062759,1743683434090,-151.0,0.00016437,2]
[357062760,1743683434101,-151.0,0.00016437,2]
[357062761,1743683434111,-151.0,0.00016437,2]
[357062762,1743683434120,-233.918531,0.00016437,2]
[357062763,1743683434130,-151.0,0.00016437,2]
[357062764,1743683434140,-151.0,0.00016437,2]
[357062765,1743683434150,-157.80702,0.00016437,2]
[357062766,1743683434160,-151.0,0.00016437,2]
[357062767,1743683434170,-151.0,0.00016437,2]
[357062768,1743683434180,-151.0,0.00016437,2]
[357062769,1743683434190,-151.0,0.00016437,2]
[357062770,1743683434199,-151.0,0.00016437,2]
[357062771,1743683434209,-151.0,0.00016437,2]
[357062772,1743683434218,-151.0,0.00016437,2]
[357062773,1743683434230,-151.0,0.00016437,2]
[357062774,1743683434240,-244.56885,0.00016437,2]
[357062775,1743683434250,-151.0,0.00016437,2]
[357062776,1743683434260,-151.0,0.00016437,2]
[357062777,1743683434270,-151.0,0.00016437,2]
[357062778,1743683434280,-151.0,0.00016437,2]
[357062779,1743683434290,-151.0,0.00016437,2]
[357062780,1743683434299,-151.0,0.00016437,2]
[357062781,1743683434309,-151.0,0.00016437,2]
[357062782,1743683434318,-151.0,0.00016437,2]
[357062783,1743683434328,-151.0,0.00016437,2]
[357062784,1743683434338,-151.0,0.00016437,2]
[357062785,1743683434348,-151.0,0.00016437,2]
[357062786,1743683434358,-151.0,0.00016437,2]
[357062787,1743683434368,-244.42401,0.00016437,2]
[357062788,1743683434378,-235.62355649,0.00016437,2]
[357062789,1743683434388,-230.277642,0.00016437,2]
[357062790,1743683434397,-230.277642,0.00016437,2]
[357062791,1743683434406,-230.277642,0.00016437,2]
[357062792,1743683434416,-230.277642,0.00016437,2]
[357062793,1743683434425,-230.277648,0.00016437,2]
[357062794,1743683434435,-151.0,0.00016437,2]
[357062795,1743683434444,-151.0,0.00016437,2]
[357062796,1743683434455,-254.061118,0.00016437,2]
[357062797,1743683434465,-254.061118,0.00016437,2]
[357062798,1743683434475,-254.061118,0.00016437,2]
[357062799,1743683434487,-254.061118,0.00016437,2]
[357062800,1743683434497,-254.061118,0.00016437,2]
[357062801,1743683434507,-254.061118,0.00016437,2]
[357062802,1743683434516,-254.061128,0.00016437,2]
[357062803,1743683434526,-151.0,0.00016437,2]
[357062804,1743683434535,-151.0,0.00016437,2]
[357062805,1743683434545,-151.0,0.00016437,2]
[357062806,1743683434556,-151.0,0.00016437,2]
[357062807,1743683434565,-151.0,0.00016437,2]
[357062808,1743683434575,-151.0,0.00016437,2]
[357062809,1743683434586,-151.0,0.00016437,2]
[357062810,1743683434600,-151.0,0.00016437,2]
[357062811,1743683434610,-151.0,0.00016437,2]
[357062812,1743683434621,-151.0,0.00016437,2]
[357062813,1743683434631,-151.0,0.00016437,2]
[357062814,1743683434641,-151.0,0.00016437,2]
[357062815,1743683434651,-151.0,0.00016437,2]
[357062816,1743683434661,-151.0,0.00016437,2]
[357062817,1743683434674,-207.455073,0.00016437,2]
[357062818,1743683434687,-382.923553,0.00016437,2]
[357062819,1743683434837,-228.650177,0.00016437,2]
[357062820,1743683434847,-382.923553,0.00016437,2]
[357062821,1743683434857,-382.923553,0.00016437,2]
[357062822,1743683434866,-382.923553,0.00016437,2]
[357062823,1743683434875,-382.923553,0.00016437,2]
[357062824,1743683434885,-382.923553,0.00016437,2]
[357062825,1743683434895,-382.923553,0.00016437,2]
[357062826,1743683434904,-382.923553,0.00016437,2]
[357062827,1743683434914,-382.923553,0.00016437,2]
[357062828,1743683434923,-382.923553,0.00016437,2]
[357062829,1743683434933,-382.923553,0.00016437,2]
[357062830,1743683434942,-382.923545,0.00016437,2]
[357062831,1743683434952,-162.009233,0.00016437,2]
[357062832,1743683434962,-151.0,0.00016437,2]
[357062833,1743683434971,-151.0,0.00016437,2]
[357062834,1743683434984,-151.0,0.00016437,2]
[357062835,1743683434994,-151.0,0.00016437,2]
[357062836,1743683435003,-153.476578,0.00016437,2]
[357062837,1743683435014,-151.0,0.00016437,2]
[357062838,1743683435024,-151.0,0.00016437,2]
[357062839,1743683435034,-151.0,0.00016437,2]
[357062840,1743683435043,-151.0,0.00016437,2]
[357062841,1743683435053,-151.0,0.00016437,2]
[357062842,1743683435063,-151.0,0.00016437,2]
[357062843,1743683435072,-151.0,0.00016437,2]
[357062844,1743683435082,-292.711173,0.00016437,2]
[357062845,1743683435091,-151.0,0.00016437,2]
[357062846,1743683435101,-151.0,0.00016437,2]
[357062847,1743683435111,-151.0,0.00016437,2]
[357062848,1743683435120,-151.0,0.00016437,2]
[357062849,1743683435129,-151.0,0.00016437,2]
[357062850,1743683435139,-151.0,0.00016437,2]
[357062851,1743683435148,-151.0,0.00016437,2]
[357062852,1743683435157,-151.0,0.00016437,2]
[357062853,1743683435167,-151.0,0.00016437,2]
[357062854,1743683435176,-151.0,0.00016437,2]
[357062855,1743683435185,-151.0,0.00016437,2]
[357062856,1743683435195,-151.0,0.00016437,2]
[357062857,1743683435204,-151.0,0.00016437,2]
[357062858,1743683435213,-151.0,0.00016437,2]
[357062859,1743683435223,-151.0,0.00016437,2]
[357062860,1743683435235,-184.169741,0.00016437,2]
[357062861,1743683435245,-813.51359,0.00016437,2]
[357062862,1743683435255,-813.51359,0.00016437,2]
[357062863,1743683435264,-813.51359,0.00016437,2]
[357062864,1743683435274,-813.51359,0.00016437,2]
[357062865,1743683435283,-813.51359,0.00016437,2]
[357062866,1743683435293,-813.51359,0.00016437,2]
[357062867,1743683435303,-813.51359,0.00016437,2]
[357062868,1743683435312,-813.51359,0.00016437,2]
[357062869,1743683435322,-813.51359,0.00016437,2]
[357062870,1743683435332,-813.51359,0.00016437,2]
[357062871,1743683435341,-813.51359,0.00016437,2]
[357062872,1743683435351,-813.51359,0.00016437,2]
[357062873,1743683435360,-813.51359,0.00016437,2]
[357062874,1743683435370,-813.51359,0.00016437,2]
[357062875,1743683435379,-813.51359,0.00016437,2]
[357062876,1743683435388,-813.51359,0.00016437,2]
[357062877,1743683435398,-813.51359,0.00016437,2]
[357062878,1743683435408,-813.513596,0.00016437,2]
[357062879,1743683435417,-235.760562,0.00016437,2]
[357062880,1743683435427,-235.760562,0.00016437,2]
[357062881,1743683435436,-235.760562,0.00016437,2]
[357062882,1743683435445,-235.760562,0.00016437,2]
[357062883,1743683435455,-235.760562,0.00016437,2]
[357062884,1743683435464,-235.760562,0.00016437,2]
[357062885,1743683435474,-235.760562,0.00016437,2]
[357062886,1743683435485,-235.760562,0.00016437,2]
[357062887,1743683435495,-235.760562,0.00016437,2]
[357062888,1743683435504,-235.760562,0.00016437,2]
[357062889,1743683435514,-235.760562,0.00016437,2]
[357062890,1743683435523,-235.760562,0.00016437,2]
[357062891,1743683435533,-235.760562,0.00016437,2]
[357062892,1743683435542,-235.760562,0.00016437,2]
[357062893,1743683435551,-235.760562,0.00016437,2]
[357062894,1743683435561,-235.760562,0.00016437,2]
[357062895,1743683435570,-235.760562,0.00016437,2]
[357062896,1743683435579,-235.760572,0.00016437,2]
[357062897,1743683435591,-475.306456,0.00016437,2]
[357062898,1743683435603,-475.306456,0.00016437,2]
[357062899,1743683435612,-475.306456,0.00016437,2]
[357062900,1743683435622,-475.306456,0.00016437,2]
[357062901,1743683435632,-380.412574,0.00016437,2]
[357062902,1743683435642,-475.306456,0.00016437,2]
[357062903,1743683435651,-380.412574,0.00016437,2]
[357062904,1743683435661,-475.306456,0.00016437,2]
[357062905,1743683435670,-475.306456,0.00016437,2]
[357062906,1743683435681,-380.412574,0.00016437,2]
[357062907,1743683435692,-380.412574,0.00016437,2]
[357062908,1743683435702,-475.306456,0.00016437,2]
[357062909,1743683435712,-380.412574,0.00016437,2]
[357062910,1743683435722,-380.412574,0.00016437,2]
[357062911,1743683435734,-475.306456,0.00016437,2]
[357062912,1743683435745,-380.412574,0.00016437,2]
[357062913,1743683435755,-380.412574,0.00016437,2]
[357062914,1743683435766,-475.306456,0.00016437,2]
[357062915,1743683435776,-380.412574,0.00016437,2]
[357062916,1743683435786,-475.306456,0.00016437,2]
[357062917,1743683435796,-475.306456,0.00016437,2]
[357062918,1743683435805,-380.412574,0.00016437,2]
[357062919,1743683435815,-475.306456,0.00016437,2]
[357062920,1743683435824,-380.412574,0.00016437,2]
[357062921,1743683435834,-475.306456,0.00016437,2]
[357062922,1743683435843,-380.412574,0.00016437,2]
[357062923,1743683435853,-475.306456,0.00016437,2]
[357062924,1743683435863,-380.412574,0.00016437,2]
[357062925,1743683435873,-475.306456,0.00016437,2]
[357062926,1743683435883,-380.412574,0.00016437,2]
[357062927,1743683435893,-475.306456,0.00016437,2]
[357062928,1743683435903,-380.412574,0.00016437,2]
[357062929,1743683435914,-475.306449,0.00016437,2]
[357062930,1743683435929,-380.412574,0.00016437,2]
[357062931,1743683435943,-380.412574,0.00016437,2]
[357062932,1743683435957,-380.412572,0.00016437,2]
[357062933,1743683435969,-151.0,0.00016437,2]
[357062934,1743683435984,-151.0,0.00016437,2]
[357062935,1743683435997,-151.0,0.00016437,2]
[357062936,1743683436010,-151.0,0.00016437,2]
[357062937,1743683436023,-151.0,0.00016437,2]
[357062938,1743683436037,-237.852438,0.00016437,2]
[357062939,1743683436050,-319.924515,0.00016437,2]
[357062940,1743683436063,-319.924515,0.00016437,2]
[357062941,1743683436076,-319.924515,0.00016437,2]
[357062942,1743683436090,-319.924515,0.00016437,2]
[357062943,1743683436102,-319.924515,0.00016437,2]
[357062944,1743683436114,-319.924515,0.00016437,2]
[357062945,1743683436127,-319.924515,0.00016437,2]
[357062946,1743683436138,-319.924515,0.00016437,2]
[357062947,1743683436150,-319.924515,0.00016437,2]
[357062948,1743683436164,-319.924515,0.00016437,2]
[357062949,1743683436177,-319.924515,0.00016437,2]
[357062950,1743683436189,-319.924515,0.00016437,2]
[357062951,1743683436200,-319.924515,0.00016437,2]
[357062952,1743683436210,-319.924515,0.00016437,2]
[357062953,1743683436223,-319.924515,0.00016437,2]
[357062954,1743683436236,-319.924515,0.00016437,2]
[357062955,1743683436249,-319.924515,0.00016437,2]
[357062956,1743683436262,-151.0,0.00016437,2]
[357062957,1743683436275,-319.924506,0.00016437,2]
[357062958,1743683436287,-151.0,0.00016437,2]
[357062959,1743683436301,-151.0,0.00016437,2]
[357062960,1743683436315,-151.0,0.00016437,2]
[357062961,1743683436328,-151.0,0.00016437,2]
[357062962,1743683436342,-151.0,0.00016437,2]
[357062963,1743683436353,-151.0,0.00016437,2]
[357062964,1743683436364,-151.0,0.00016437,2]
[357062965,1743683436375,-151.0,0.00016437,2]
[357062966,1743683436387,-151.0,0.00016437,2]
[357062967,1743683436400,-242.515519,0.00016437,2]
[357062968,1743683436414,-151.0,0.00016437,2]
[357062969,1743683436427,-151.0,0.00016437,2]
[357062970,1743683436438,-160.74845,0.00016437,2]
[357062971,1743683436449,-151.0,0.00016437,2]
[357062972,1743683436461,-151.0,0.00016437,2]
[357062973,1743683436475,-181.948033,0.00016437,2]
[357062974,1743683436488,-166.778241,0.00016437,2]
[357062975,1743683436500,-901.781969,0.00016437,2]
[357062976,1743683436511,-901.781969,0.00016437,2]
[357062977,1743683436522,-901.781969,0.00016437,2]
[357062978,1743683436534,-901.781969,0.00016437,2]
[357062979,1743683436546,-901.781969,0.00016437,2]
[357062980,1743683436558,-901.781969,0.00016437,2]
[357062981,1743683436569,-901.781969,0.00016437,2]
[357062982,1743683436581,-901.781969,0.00016437,2]
[357062983,1743683436597,-901.781969,0.00016437,2]
[357062984,1743683436610,-901.781969,0.00016437,2]
[357062985,1743683436622,-901.781969,0.00016437,2]
[357062986,1743683436634,-901.781969,0.00016437,2]
[357062987,1743683436647,-901.781969,0.00016437,2]
[357062988,1743683436659,-901.781969,0.00016437,2]
[357062989,1743683436672,-901.781969,0.00016437,2]
[357062990,1743683436685,-901.781969,0.00016437,2]
[357062991,1743683436697,-901.781969,0.00016437,2]
[357062992,1743683436709,-901.781978,0.00016437,2]
[357062993,1743683436721,-214.285468,0.00016437,2]
[357062994,1743683436735,-214.285468,0.00016437,2]
[357062995,1743683436746,-214.285468,0.00016437,2]
[357062996,1743683436758,-214.285468,0.00016437,2]
[357062997,1743683436771,-214.285468,0.00016437,2]
[357062998,1743683436782,-214.285468,0.00016437,2]
[357062999,1743683436795,-214.285468,0.00016437,2]
[357063000,1743683436806,-214.285468,0.00016437,2]
[357063001,1743683436818,-214.285468,0.00016437,2]
[357063002,1743683436830,-214.285468,0.00016437,2]
[357063003,1743683436842,-214.285468,0.00016437,2]
[357063004,1743683436853,-214.285468,0.00016437,2]
[357063005,1743683436865,-214.285468,0.00016437,2]
[357063006,1743683436876,-214.285468,0.00016437,2]
[357063007,1743683436888,-214.285468,0.00016437,2]
[357063008,1743683436900,-214.285468,0.00016437,2]
[357063009,1743683436912,-214.285468,0.00016437,2]
[357063010,1743683436925,-214.285468,0.00016437,2]
[357063011,1743683436936,-151.0,0.00016437,2]
[357063012,1743683436948,-151.0,0.00016437,2]
[357063013,1743683436960,-151.0,0.00016437,2]
[357063014,1743683436972,-151.0,0.00016437,2]
[357063015,1743683436985,-249.792278,0.00016437,2]
[357063016,1743683436996,-353.784312,0.00016437,2]
[357063017,1743683437007,-353.784312,0.00016437,2]
[357063018,1743683437019,-353.784312,0.00016437,2]
[357063019,1743683437031,-353.784312,0.00016437,2]
[357063020,1743683437043,-353.784312,0.00016437,2]
[357063021,1743683437055,-353.784312,0.00016437,2]
[357063022,1743683437066,-353.784312,0.00016437,2]
[357063023,1743683437078,-353.784312,0.00016437,2]
[357063024,1743683437089,-353.784312,0.00016437,2]
[357063025,1743683437101,-353.784312,0.00016437,2]
[357063026,1743683437112,-353.784312,0.00016437,2]
[357063027,1743683437124,-353.784312,0.00016437,2]
[357063028,1743683437136,-353.784312,0.00016437,2]
[357063029,1743683437147,-353.784312,0.00016437,2]
[357063030,1743683437159,-353.784312,0.00016437,2]
[357063031,1743683437171,-353.784312,0.00016437,2]
[357063032,1743683437183,-353.784312,0.00016437,2]
[357063033,1743683437195,-353.784302,0.00016437,2]
[357063034,1743683437206,-151.0,0.00016437,2]
[357063035,1743683437218,-151.0,0.00016437,2]
[357063036,1743683437235,-151.0,0.00016437,2]
[357063037,1743683437248,-151.0,0.00016437,2]
[357063038,1743683437403,-151.0,0.00016437,2]
[357063039,1743683437428,-151.0,0.00016437,2]
[357063040,1743683437441,-180.489214,0.00016437,2]
[357063041,1743683437455,-766.174054,0.00016437,2]
[357063042,1743683437464,-766.174054,0.00016437,2]
[357063043,1743683437474,-766.174054,0.00016437,2]
[357063044,1743683437486,-766.174054,0.00016437,2]
[357063045,1743683437496,-766.174053,0.00016437,2]
[357063046,1743683437506,-151.0,0.00016437,2]
[357063047,1743683437516,-151.0,0.00016437,2]
[357063048,1743683437526,-500.0,0.00016437,2]